[Event "Early-Titled-Tuesday-Blitz-April-02-2024"]
[Site "Chess.com"]
[Date "2024.04.02"]
[Round "8"]
[White "JoliyRoger"]
[Black "FMStan15"]
[Result "1-0"]
[WhiteElo "2423"]
[BlackElo "2127"]
[TimeControl "180+1"]
[EndTime "9:28:09 PDT"]
[Termination "JoliyRoger won on time"]

1. d3 {[%clk 0:03:00]} 1... g6 {[%clk 0:02:50.6]} 2. d4 {[%clk 0:03:00.9]} 2...
Bg7 {[%clk 0:02:50.8]} 3. c4 {[%clk 0:03:00.6]} 3... d6 {[%clk 0:02:51]} 4. Nc3
{[%clk 0:03:01.1]} 4... Nf6 {[%clk 0:02:51.4]} 5. Nf3 {[%clk 0:03:00.2]} 5...
O-O {[%clk 0:02:51.5]} 6. e4 {[%clk 0:03:00.9]} 6... Nbd7 {[%clk 0:02:51.8]} 7.
h3 {[%clk 0:03:00.9]} 7... e5 {[%clk 0:02:51.8]} 8. d5 {[%clk 0:03:01.5]} 8...
Nc5 {[%clk 0:02:46.4]} 9. Qc2 {[%clk 0:03:01.1]} 9... a5 {[%clk 0:02:45.8]} 10.
Bg5 {[%clk 0:03:00.4]} 10... h6 {[%clk 0:02:44.5]} 11. Be3 {[%clk 0:03:01]}
11... Nh5 {[%clk 0:02:42.3]} 12. g3 {[%clk 0:02:53.6]} 12... b6 {[%clk
0:02:41.9]} 13. Be2 {[%clk 0:02:52.4]} 13... Bd7 {[%clk 0:02:27.8]} 14. Nd2
{[%clk 0:02:50]} 14... Nf6 {[%clk 0:02:26.7]} 15. g4 {[%clk 0:02:50.6]} 15...
Nh7 {[%clk 0:02:25.1]} 16. O-O-O {[%clk 0:02:43.2]} 16... f5 {[%clk 0:02:25.2]}
17. gxf5 {[%clk 0:02:43.3]} 17... gxf5 {[%clk 0:02:25.2]} 18. Rdg1 {[%clk
0:02:44]} 18... f4 {[%clk 0:02:24.3]} 19. Bxc5 {[%clk 0:02:44.1]} 19... bxc5
{[%clk 0:02:22.9]} 20. Bg4 {[%clk 0:02:45]} 20... Kh8 {[%clk 0:02:17.2]} 21. Nf3
{[%clk 0:02:45.3]} 21... Bf6 {[%clk 0:02:08.8]} 22. Qe2 {[%clk 0:02:39.6]} 22...
Rg8 {[%clk 0:02:02.1]} 23. Nd2 {[%clk 0:02:30]} 23... Bh4 {[%clk 0:01:50.1]} 24.
Kc2 {[%clk 0:02:27.4]} 24... Rg7 {[%clk 0:01:30.8]} 25. Nf3 {[%clk 0:02:19.5]}
25... Bf6 {[%clk 0:01:24.7]} 26. Ne1 {[%clk 0:02:08]} 26... Qe7 {[%clk
0:01:22.9]} 27. Bxd7 {[%clk 0:01:51.7]} 27... Qxd7 {[%clk 0:01:20.3]} 28. Qh5
{[%clk 0:01:45.1]} 28... Rag8 {[%clk 0:01:01.8]} 29. Rxg7 {[%clk 0:01:42.6]}
29... Qxg7 {[%clk 0:01:01]} 30. Nf3 {[%clk 0:01:32.5]} 30... Ng5 {[%clk
0:00:58]} 31. Nh4 {[%clk 0:01:00.3]} 31... Qh7 {[%clk 0:00:21.9]} 32. Nf5 {[%clk
0:00:56.2]} 32... Nxe4 {[%clk 0:00:14.7]} 33. Nxe4 {[%clk 0:00:54.2]} 33... Rg2
{[%clk 0:00:08.4]} 34. Qxh6 {[%clk 0:00:42.1]} 34... Qxh6 {[%clk 0:00:03.1]} 35.
Nxh6 {[%clk 0:00:42.5]} 1-0

[Event "Early-Titled-Tuesday-Blitz-April-02-2024"]
[Site "Chess.com"]
[Date "2024.04.02"]
[Round "8"]
[White "Vasily_IM"]
[Black "Sofia_Blokhin"]
[Result "0-1"]
[WhiteElo "2542"]
[BlackElo "2291"]
[TimeControl "180+1"]
[EndTime "9:28:13 PDT"]
[Termination "Sofia_Blokhin won by checkmate"]

1. d4 {[%clk 0:02:53.4]} 1... f5 {[%clk 0:01:17.5]} 2. Nf3 {[%clk 0:02:52.2]}
2... Nf6 {[%clk 0:01:15.8]} 3. g3 {[%clk 0:02:52.2]} 3... e6 {[%clk 0:01:15.9]}
4. Bg2 {[%clk 0:02:52.8]} 4... Be7 {[%clk 0:01:16.5]} 5. O-O {[%clk 0:02:53.4]}
5... O-O {[%clk 0:01:17.2]} 6. c4 {[%clk 0:02:53.9]} 6... d5 {[%clk 0:01:17.6]}
7. Nc3 {[%clk 0:02:52.7]} 7... c6 {[%clk 0:01:18]} 8. Qc2 {[%clk 0:02:52.3]}
8... Ne4 {[%clk 0:01:18.3]} 9. Rb1 {[%clk 0:02:51.8]} 9... g5 {[%clk 0:01:17.5]}
10. b4 {[%clk 0:02:49.9]} 10... g4 {[%clk 0:01:17.1]} 11. Ne5 {[%clk 0:02:49.7]}
11... Nd7 {[%clk 0:01:09.7]} 12. Bf4 {[%clk 0:02:48.4]} 12... Nxe5 {[%clk
0:01:09.6]} 13. Bxe5 {[%clk 0:02:48.1]} 13... Nf6 {[%clk 0:01:04.7]} 14. b5
{[%clk 0:02:45.1]} 14... Bd7 {[%clk 0:01:03.3]} 15. bxc6 {[%clk 0:02:44]} 15...
Bxc6 {[%clk 0:01:01.8]} 16. c5 {[%clk 0:02:38.8]} 16... Nd7 {[%clk 0:00:58.5]}
17. Bf4 {[%clk 0:02:37.3]} 17... Bg5 {[%clk 0:00:55.4]} 18. e3 {[%clk
0:02:36.4]} 18... Bxf4 {[%clk 0:00:51.7]} 19. exf4 {[%clk 0:02:36.2]} 19... Rf6
{[%clk 0:00:50.5]} 20. f3 {[%clk 0:02:32.5]} 20... h5 {[%clk 0:00:49.2]} 21.
Rfe1 {[%clk 0:02:30]} 21... Rh6 {[%clk 0:00:47.9]} 22. Nb5 {[%clk 0:02:12.7]}
22... Nf8 {[%clk 0:00:38.4]} 23. Nd6 {[%clk 0:02:09.9]} 23... Rb8 {[%clk
0:00:35.6]} 24. Re3 {[%clk 0:01:51.3]} 24... h4 {[%clk 0:00:35.6]} 25. fxg4
{[%clk 0:01:48.7]} 25... fxg4 {[%clk 0:00:31.7]} 26. f5 {[%clk 0:01:44.8]} 26...
hxg3 {[%clk 0:00:28.9]} 27. fxe6 {[%clk 0:01:33.8]} 27... gxh2+ {[%clk
0:00:27.7]} 28. Kh1 {[%clk 0:01:33.6]} 28... Nxe6 {[%clk 0:00:26.6]} 29. Qf5
{[%clk 0:01:26]} 29... Qf6 {[%clk 0:00:21.9]} 30. Qxg4+ {[%clk 0:01:22.2]} 30...
Rg6 {[%clk 0:00:22.3]} 31. Qh3 {[%clk 0:01:15.6]} 31... Nf4 {[%clk 0:00:19.4]}
32. Rf1 {[%clk 0:00:59.3]} 32... Rf8 {[%clk 0:00:15.8]} 33. Ref3 {[%clk
0:00:53.1]} 33... Qxd4 {[%clk 0:00:14.2]} 34. Qh4 {[%clk 0:00:41.3]} 34... Rxg2
{[%clk 0:00:12]} 35. Rxf4 {[%clk 0:00:39.5]} 35... Qg1+ {[%clk 0:00:08.1]} 36.
Rxg1 {[%clk 0:00:37.7]} 36... hxg1=Q# {[%clk 0:00:08.2]} 0-1

[Event "Early-Titled-Tuesday-Blitz-April-02-2024"]
[Site "Chess.com"]
[Date "2024.04.02"]
[Round "8"]
[White "Actuary44"]
[Black "ansko1999"]
[Result "1-0"]
[WhiteElo "2523"]
[BlackElo "2621"]
[TimeControl "180+1"]
[EndTime "9:28:16 PDT"]
[Termination "Actuary44 won by resignation"]

1. e4 {[%clk 0:03:00.9]} 1... c5 {[%clk 0:02:59.2]} 2. d4 {[%clk 0:03:01.2]}
2... cxd4 {[%clk 0:02:59.2]} 3. c3 {[%clk 0:03:01.8]} 3... Nf6 {[%clk
0:02:57.8]} 4. Bd3 {[%clk 0:03:01.6]} 4... dxc3 {[%clk 0:02:46.4]} 5. Nxc3
{[%clk 0:03:02.5]} 5... Nc6 {[%clk 0:02:46.1]} 6. f4 {[%clk 0:03:02.7]} 6... d6
{[%clk 0:02:45.2]} 7. Nf3 {[%clk 0:03:02.2]} 7... Bg4 {[%clk 0:02:41.3]} 8. O-O
{[%clk 0:03:02.5]} 8... e5 {[%clk 0:02:37.2]} 9. Kh1 {[%clk 0:02:54]} 9... Be7
{[%clk 0:02:36.3]} 10. Qe1 {[%clk 0:02:53.8]} 10... O-O {[%clk 0:02:33]} 11. f5
{[%clk 0:02:53.2]} 11... d5 {[%clk 0:02:08.9]} 12. exd5 {[%clk 0:02:52.8]} 12...
Nxd5 {[%clk 0:02:09]} 13. Nxd5 {[%clk 0:02:53.7]} 13... Qxd5 {[%clk 0:02:08.8]}
14. Be4 {[%clk 0:02:53.9]} 14... Qd6 {[%clk 0:02:04]} 15. Ng5 {[%clk 0:02:40.3]}
15... Bxg5 {[%clk 0:01:59.7]} 16. Bxg5 {[%clk 0:02:41.2]} 16... f6 {[%clk
0:01:57.1]} 17. Be3 {[%clk 0:02:38.3]} 17... Bh5 {[%clk 0:01:56.6]} 18. Rd1
{[%clk 0:02:35.9]} 18... Nd4 {[%clk 0:01:56.3]} 19. Rd2 {[%clk 0:02:27.4]} 19...
Bf7 {[%clk 0:01:51.2]} 20. Qg3 {[%clk 0:02:22.8]} 20... Kh8 {[%clk 0:01:50.5]}
21. Bxd4 {[%clk 0:02:14.2]} 21... Qa6 {[%clk 0:01:50.8]} 22. Bd3 {[%clk
0:02:07.8]} 22... Qxa2 {[%clk 0:01:49.6]} 23. Bc3 {[%clk 0:01:56.1]} 23... Rad8
{[%clk 0:01:49.2]} 24. Bb1 {[%clk 0:01:51.4]} 24... Qa6 {[%clk 0:01:46.8]} 25.
Qf2 {[%clk 0:01:40.1]} 25... Rxd2 {[%clk 0:01:45.7]} 26. Bxd2 {[%clk 0:01:41]}
26... Rd8 {[%clk 0:01:45.9]} 27. Bc3 {[%clk 0:01:36.7]} 27... b5 {[%clk
0:01:43.7]} 28. h3 {[%clk 0:01:34.7]} 28... h6 {[%clk 0:01:41.2]} 29. Bc2 {[%clk
0:01:20.1]} 29... Qb7 {[%clk 0:01:40.3]} 30. Rd1 {[%clk 0:01:18.8]} 30... Rc8
{[%clk 0:01:40.1]} 31. Qd2 {[%clk 0:01:12.5]} 31... b4 {[%clk 0:01:38.7]} 32.
Bxb4 {[%clk 0:01:02.4]} 32... Bh5 {[%clk 0:01:38.9]} 33. Qd7 {[%clk 0:00:47]}
33... Qxd7 {[%clk 0:01:35.8]} 34. Rxd7 {[%clk 0:00:47.9]} 34... Rxc2 {[%clk
0:01:36.3]} 35. Rxa7 {[%clk 0:00:45]} 35... Rxb2 {[%clk 0:01:30]} 36. Bf8 {[%clk
0:00:44.3]} 36... Rb6 {[%clk 0:01:23]} 37. Bxg7+ {[%clk 0:00:41.4]} 37... Kg8
{[%clk 0:01:22.1]} 38. Bxh6 {[%clk 0:00:41.2]} 38... Bf7 {[%clk 0:01:20.9]} 39.
Ra8+ {[%clk 0:00:36.9]} 39... Kh7 {[%clk 0:01:20.5]} 40. Be3 {[%clk 0:00:37]}
40... Rb3 {[%clk 0:01:18.2]} 41. Bc5 {[%clk 0:00:33.7]} 41... Bd5 {[%clk
0:01:18.1]} 42. Ra7+ {[%clk 0:00:33.4]} 42... Kg8 {[%clk 0:01:17.2]} 43. Rd7
{[%clk 0:00:25.4]} 43... Rxh3+ {[%clk 0:01:15]} 44. Kg1 {[%clk 0:00:24.6]} 44...
Rd3 {[%clk 0:01:15.7]} 45. Be7 {[%clk 0:00:22.8]} 45... Kf7 {[%clk 0:01:14.4]}
46. Bc5+ {[%clk 0:00:18.7]} 46... Ke8 {[%clk 0:01:13.6]} 47. Rd6 {[%clk
0:00:17]} 47... Kf8 {[%clk 0:01:10.2]} 48. Rxd5+ {[%clk 0:00:15.8]} 1-0

[Event "Early-Titled-Tuesday-Blitz-April-02-2024"]
[Site "Chess.com"]
[Date "2024.04.02"]
[Round "8"]
[White "EvgenyBurmakin"]
[Black "zano2023"]
[Result "1-0"]
[WhiteElo "2361"]
[BlackElo "2222"]
[TimeControl "180+1"]
[EndTime "9:28:19 PDT"]
[Termination "EvgenyBurmakin won by resignation"]

1. e4 {[%clk 0:02:59]} 1... e5 {[%clk 0:02:56.8]} 2. Nf3 {[%clk 0:02:58.1]} 2...
d6 {[%clk 0:02:57.4]} 3. d4 {[%clk 0:02:57.5]} 3... f5 {[%clk 0:02:58]} 4. dxe5
{[%clk 0:02:48.9]} 4... fxe4 {[%clk 0:02:57.1]} 5. Ng5 {[%clk 0:02:48.9]} 5...
d5 {[%clk 0:02:57.7]} 6. e6 {[%clk 0:02:35.5]} 6... Nh6 {[%clk 0:02:56.3]} 7.
Be3 {[%clk 0:02:18.9]} 7... c6 {[%clk 0:02:46.2]} 8. c4 {[%clk 0:02:18.1]} 8...
Bb4+ {[%clk 0:02:26.5]} 9. Nc3 {[%clk 0:02:17.6]} 9... Nf5 {[%clk 0:01:57]} 10.
Nf7 {[%clk 0:01:56.4]} 10... Nxe3 {[%clk 0:01:47.4]} 11. fxe3 {[%clk 0:01:54.9]}
11... Qf6 {[%clk 0:01:44.2]} 12. Nxh8 {[%clk 0:01:50.4]} 12... Bxc3+ {[%clk
0:01:42]} 13. bxc3 {[%clk 0:01:51.3]} 13... Qxc3+ {[%clk 0:01:41.7]} 14. Kf2
{[%clk 0:01:51.4]} 14... Bxe6 {[%clk 0:01:35.6]} 15. cxd5 {[%clk 0:01:48.1]}
15... cxd5 {[%clk 0:01:31]} 16. Bb5+ {[%clk 0:01:44.2]} 16... Nc6 {[%clk
0:01:27.6]} 17. Rc1 {[%clk 0:01:35.7]} 17... Qb2+ {[%clk 0:01:24.9]} 18. Qe2
{[%clk 0:01:34.7]} 18... Qxe2+ {[%clk 0:01:16.8]} 19. Kxe2 {[%clk 0:01:34.7]}
19... Kd7 {[%clk 0:01:16.8]} 20. Ng6 {[%clk 0:01:03.4]} 20... hxg6 {[%clk
0:01:15.6]} 21. Rhf1 {[%clk 0:01:03.1]} 21... Kd6 {[%clk 0:01:12]} 22. Bxc6
{[%clk 0:00:59.6]} 22... bxc6 {[%clk 0:01:12.9]} 23. h3 {[%clk 0:00:54.1]} 23...
Rb8 {[%clk 0:01:11.4]} 24. Rb1 {[%clk 0:00:53.7]} 24... Rxb1 {[%clk 0:00:57]}
25. Rxb1 {[%clk 0:00:54.6]} 25... c5 {[%clk 0:00:53.9]} 26. Rb7 {[%clk
0:00:53.4]} 26... d4 {[%clk 0:00:44.8]} 27. Rxa7 {[%clk 0:00:49.9]} 27... d3+
{[%clk 0:00:35]} 28. Kd2 {[%clk 0:00:49.5]} 28... Kd5 {[%clk 0:00:32.1]} 29. Kc3
{[%clk 0:00:44.8]} 29... Ke5 {[%clk 0:00:30.8]} 30. Rxg7 {[%clk 0:00:42.6]}
30... Kf6 {[%clk 0:00:26]} 31. Ra7 {[%clk 0:00:38.5]} 31... Kg5 {[%clk
0:00:24.2]} 32. a4 {[%clk 0:00:34.7]} 32... Kh4 {[%clk 0:00:23.7]} 33. Re7
{[%clk 0:00:33.9]} 33... Bd5 {[%clk 0:00:23]} 34. Re5 {[%clk 0:00:33.4]} 34...
Bc6 {[%clk 0:00:21.8]} 35. a5 {[%clk 0:00:30.7]} 35... g5 {[%clk 0:00:19.8]} 36.
Rxc5 {[%clk 0:00:29.9]} 36... Ba8 {[%clk 0:00:18.9]} 37. Kd2 {[%clk 0:00:27.8]}
1-0

[Event "Early-Titled-Tuesday-Blitz-April-02-2024"]
[Site "Chess.com"]
[Date "2024.04.02"]
[Round "8"]
[White "robertoalejandro10"]
[Black "DanielSaiz01"]
[Result "0-1"]
[WhiteElo "2473"]
[BlackElo "2301"]
[TimeControl "180+1"]
[EndTime "9:28:22 PDT"]
[Termination "DanielSaiz01 won on time"]

1. Nf3 {[%clk 0:03:00.9]} 1... c5 {[%clk 0:02:36.2]} 2. c4 {[%clk 0:02:58.5]}
2... Nc6 {[%clk 0:02:35.8]} 3. g3 {[%clk 0:02:58.3]} 3... g6 {[%clk 0:02:35.7]}
4. Bg2 {[%clk 0:02:58.9]} 4... Bg7 {[%clk 0:02:36.4]} 5. O-O {[%clk 0:02:59.4]}
5... e6 {[%clk 0:02:37]} 6. Nc3 {[%clk 0:03:00]} 6... Nge7 {[%clk 0:02:37.2]} 7.
b3 {[%clk 0:03:00.3]} 7... d5 {[%clk 0:02:35.7]} 8. cxd5 {[%clk 0:03:01.2]} 8...
exd5 {[%clk 0:02:34]} 9. Bb2 {[%clk 0:03:01.6]} 9... d4 {[%clk 0:02:33.2]} 10.
Na4 {[%clk 0:03:00.9]} 10... b6 {[%clk 0:02:29.8]} 11. e3 {[%clk 0:02:57.2]}
11... Ba6 {[%clk 0:02:07.3]} 12. Re1 {[%clk 0:02:53.9]} 12... O-O {[%clk
0:02:05.9]} 13. exd4 {[%clk 0:02:42.3]} 13... cxd4 {[%clk 0:02:06.8]} 14. Rc1
{[%clk 0:02:25.1]} 14... Rc8 {[%clk 0:02:03.7]} 15. Ba3 {[%clk 0:02:18.9]} 15...
Re8 {[%clk 0:02:02.1]} 16. Nb2 {[%clk 0:02:11.1]} 16... Qd7 {[%clk 0:01:22.7]}
17. Nc4 {[%clk 0:01:58.1]} 17... Bxc4 {[%clk 0:01:20.3]} 18. Rxc4 {[%clk
0:01:54.4]} 18... Nf5 {[%clk 0:01:18.9]} 19. Bb2 {[%clk 0:01:29.8]} 19... d3
{[%clk 0:00:58.6]} 20. Bxg7 {[%clk 0:01:17.9]} 20... Kxg7 {[%clk 0:00:59]} 21.
Qa1+ {[%clk 0:01:16.6]} 21... f6 {[%clk 0:00:53.4]} 22. Rec1 {[%clk 0:00:55.8]}
22... Ncd4 {[%clk 0:00:17.4]} 23. Nxd4 {[%clk 0:00:39.6]} 23... Nxd4 {[%clk
0:00:18.3]} 24. Rxc8 {[%clk 0:00:08.6]} 24... Rxc8 {[%clk 0:00:16.6]} 25. Rxc8
{[%clk 0:00:05]} 25... Ne2+ {[%clk 0:00:16.7]} 26. Kf1 {[%clk 0:00:04.9]} 26...
Qxc8 {[%clk 0:00:17.6]} 27. Bf3 {[%clk 0:00:04.3]} 27... Qc1+ {[%clk 0:00:14.5]}
28. Qxc1 {[%clk 0:00:04]} 28... Nxc1 {[%clk 0:00:15.4]} 0-1

[Event "Early-Titled-Tuesday-Blitz-April-02-2024"]
[Site "Chess.com"]
[Date "2024.04.02"]
[Round "8"]
[White "PavelChernomordik"]
[Black "nikitakhoroshev"]
[Result "1/2-1/2"]
[WhiteElo "2439"]
[BlackElo "2576"]
[TimeControl "180+1"]
[EndTime "9:28:24 PDT"]
[Termination "Game drawn by agreement"]

1. e4 {[%clk 0:03:00.9]} 1... e5 {[%clk 0:02:59]} 2. Nf3 {[%clk 0:03:00.5]} 2...
Nc6 {[%clk 0:02:58.2]} 3. Bb5 {[%clk 0:02:59.9]} 3... a6 {[%clk 0:02:57.8]} 4.
Ba4 {[%clk 0:02:59.6]} 4... Nf6 {[%clk 0:02:57.3]} 5. d3 {[%clk 0:02:59.6]} 5...
b5 {[%clk 0:02:47.9]} 6. Bb3 {[%clk 0:02:55.5]} 6... Be7 {[%clk 0:02:47.8]} 7.
a4 {[%clk 0:02:50.3]} 7... Bb7 {[%clk 0:02:44.8]} 8. O-O {[%clk 0:02:42.9]} 8...
O-O {[%clk 0:02:42.5]} 9. Nc3 {[%clk 0:02:39.6]} 9... b4 {[%clk 0:02:40.2]} 10.
Nd5 {[%clk 0:02:38.5]} 10... Na5 {[%clk 0:02:36.8]} 11. Nxe7+ {[%clk 0:02:26.9]}
11... Qxe7 {[%clk 0:02:35.1]} 12. Ba2 {[%clk 0:02:27.2]} 12... Rab8 {[%clk
0:02:28.5]} 13. Bg5 {[%clk 0:02:22.8]} 13... c5 {[%clk 0:02:21.7]} 14. h3 {[%clk
0:02:16.7]} 14... b3 {[%clk 0:02:08.8]} 15. Bxb3 {[%clk 0:02:12.9]} 15... Nxb3
{[%clk 0:02:07.9]} 16. cxb3 {[%clk 0:02:12.5]} 16... Bc6 {[%clk 0:02:02.6]} 17.
Nd2 {[%clk 0:02:10.6]} 17... h6 {[%clk 0:01:58.3]} 18. Be3 {[%clk 0:02:10.2]}
18... d5 {[%clk 0:01:54.6]} 19. f3 {[%clk 0:02:03]} 19... Rfc8 {[%clk
0:01:46.1]} 20. Rc1 {[%clk 0:02:00]} 20... Ba8 {[%clk 0:01:46]} 21. Re1 {[%clk
0:01:55.7]} 21... Nd7 {[%clk 0:01:18.7]} 22. exd5 {[%clk 0:01:46.1]} 22... Bxd5
{[%clk 0:01:18]} 23. Rc3 {[%clk 0:01:45.2]} 23... Qe6 {[%clk 0:01:17.1]} 24. Qc2
{[%clk 0:01:41.1]} 24... Qg6 {[%clk 0:01:14.2]} 25. Rc1 {[%clk 0:01:35.1]} 25...
Be6 {[%clk 0:01:07.3]} 26. Kh2 {[%clk 0:01:33.5]} 26... Bf5 {[%clk 0:01:03.4]}
27. Ne4 {[%clk 0:01:21.9]} 27... Be6 {[%clk 0:01:01.2]} 28. Nxc5 {[%clk
0:01:08.9]} 28... Nxc5 {[%clk 0:01:00.1]} 29. Rxc5 {[%clk 0:01:03.6]} 29... Rxc5
{[%clk 0:00:56.7]} 30. Qxc5 {[%clk 0:01:01.6]} 30... Rxb3 {[%clk 0:00:55.6]} 31.
Qxe5 {[%clk 0:00:55]} 31... Qxd3 {[%clk 0:00:53.9]} 32. Bd4 {[%clk 0:00:51.4]}
32... Qg6 {[%clk 0:00:49]} 33. Rc6 {[%clk 0:00:43.4]} 33... Rd3 {[%clk
0:00:40.8]} 34. Bc3 {[%clk 0:00:40.9]} 34... Rd5 {[%clk 0:00:32.1]} 35. Qg3
{[%clk 0:00:25.3]} 35... Rg5 {[%clk 0:00:30]} 36. Qf2 {[%clk 0:00:24.5]} 36...
a5 {[%clk 0:00:26.7]} 37. Ra6 {[%clk 0:00:22.4]} 1/2-1/2

[Event "Early-Titled-Tuesday-Blitz-April-02-2024"]
[Site "Chess.com"]
[Date "2024.04.02"]
[Round "8"]
[White "Chernov_Alexander_A"]
[Black "LuisFSiles"]
[Result "1/2-1/2"]
[WhiteElo "2220"]
[BlackElo "2350"]
[TimeControl "180+1"]
[EndTime "9:28:24 PDT"]
[Termination "Game drawn by repetition"]

1. d4 {[%clk 0:03:00.9]} 1... Nf6 {[%clk 0:02:59.4]} 2. Nf3 {[%clk 0:02:59.6]}
2... g6 {[%clk 0:02:58.8]} 3. g3 {[%clk 0:02:55.8]} 3... Bg7 {[%clk 0:02:58.2]}
4. Bg2 {[%clk 0:02:55.7]} 4... O-O {[%clk 0:02:58.3]} 5. O-O {[%clk 0:02:55.5]}
5... d6 {[%clk 0:02:58.8]} 6. Nc3 {[%clk 0:02:52.3]} 6... d5 {[%clk 0:02:57.1]}
7. Ne5 {[%clk 0:02:47.6]} 7... c6 {[%clk 0:02:54.4]} 8. e4 {[%clk 0:02:39.8]}
8... dxe4 {[%clk 0:02:48.9]} 9. Nxe4 {[%clk 0:02:39.8]} 9... Nxe4 {[%clk
0:02:46]} 10. Bxe4 {[%clk 0:02:39.4]} 10... Bh3 {[%clk 0:02:46.6]} 11. Re1
{[%clk 0:02:36.1]} 11... Nd7 {[%clk 0:02:37.2]} 12. Nxd7 {[%clk 0:02:02.5]}
12... Qxd7 {[%clk 0:02:36.1]} 13. c3 {[%clk 0:01:56.2]} 13... h5 {[%clk
0:02:28.2]} 14. Qb3 {[%clk 0:01:46.2]} 14... h4 {[%clk 0:02:08.8]} 15. Bf4
{[%clk 0:01:38.9]} 15... Be6 {[%clk 0:02:06.2]} 16. Qc2 {[%clk 0:01:35.7]} 16...
h3 {[%clk 0:02:05.8]} 17. Rad1 {[%clk 0:01:22.9]} 17... Bd5 {[%clk 0:02:02.3]}
18. f3 {[%clk 0:01:07.8]} 18... f5 {[%clk 0:01:42.3]} 19. Bxd5+ {[%clk
0:01:03.1]} 19... Qxd5 {[%clk 0:01:43.2]} 20. Qb3 {[%clk 0:01:02.3]} 20... Qxb3
{[%clk 0:01:36.5]} 21. axb3 {[%clk 0:01:00.2]} 21... Kf7 {[%clk 0:01:36.9]} 22.
Be5 {[%clk 0:00:57.4]} 22... Bxe5 {[%clk 0:01:26]} 23. Rxe5 {[%clk 0:00:56]}
23... e6 {[%clk 0:01:22.9]} 24. Rde1 {[%clk 0:00:55.1]} 24... Rfe8 {[%clk
0:01:19]} 25. b4 {[%clk 0:00:54.9]} 25... Rad8 {[%clk 0:01:16.7]} 26. Kf2 {[%clk
0:00:53.3]} 26... Rd5 {[%clk 0:01:10.1]} 27. f4 {[%clk 0:00:45.1]} 27... Rxe5
{[%clk 0:01:09.2]} 28. Rxe5 {[%clk 0:00:44.1]} 28... Kf6 {[%clk 0:01:03.1]} 29.
Kf3 {[%clk 0:00:43.8]} 29... g5 {[%clk 0:00:58.4]} 30. fxg5+ {[%clk 0:00:33.3]}
30... Kxg5 {[%clk 0:00:58.1]} 31. g4 {[%clk 0:00:33.4]} 31... Rf8 {[%clk
0:00:43.8]} 32. gxf5 {[%clk 0:00:31.9]} 32... Rxf5+ {[%clk 0:00:41.5]} 33. Rxf5+
{[%clk 0:00:31]} 33... exf5 {[%clk 0:00:40.5]} 34. Kg3 {[%clk 0:00:31]} 34... b5
{[%clk 0:00:39.2]} 35. Kxh3 {[%clk 0:00:30.7]} 35... Kf4 {[%clk 0:00:39.7]} 36.
Kg2 {[%clk 0:00:29.8]} 36... Ke3 {[%clk 0:00:40.1]} 37. h4 {[%clk 0:00:26.5]}
37... Kf4 {[%clk 0:00:38.9]} 38. Kh3 {[%clk 0:00:24.8]} 38... a6 {[%clk
0:00:33.5]} 39. b3 {[%clk 0:00:23.6]} 39... Ke3 {[%clk 0:00:32.2]} 40. Kg2
{[%clk 0:00:19.6]} 40... Ke2 {[%clk 0:00:28.7]} 41. Kg3 {[%clk 0:00:19.2]} 41...
Ke3 {[%clk 0:00:28.9]} 42. Kg2 {[%clk 0:00:19.4]} 42... Ke2 {[%clk 0:00:29.1]}
43. Kg3 {[%clk 0:00:19.6]} 43... Ke3 {[%clk 0:00:29.4]} 44. Kg2 {[%clk
0:00:19.8]} 1/2-1/2

[Event "Early-Titled-Tuesday-Blitz-April-02-2024"]
[Site "Chess.com"]
[Date "2024.04.02"]
[Round "8"]
[White "Caracal3000"]
[Black "gpsji27"]
[Result "1-0"]
[WhiteElo "2541"]
[BlackElo "2330"]
[TimeControl "180+1"]
[EndTime "9:28:25 PDT"]
[Termination "Caracal3000 won by resignation"]

1. e4 {[%clk 0:03:00.9]} 1... e5 {[%clk 0:02:58.1]} 2. Nf3 {[%clk 0:03:00.3]}
2... Nc6 {[%clk 0:02:57.7]} 3. Nc3 {[%clk 0:03:00.3]} 3... Nf6 {[%clk
0:02:57.3]} 4. d4 {[%clk 0:03:00.5]} 4... exd4 {[%clk 0:02:57.5]} 5. Nxd4 {[%clk
0:03:00.6]} 5... Bb4 {[%clk 0:02:57.5]} 6. Nxc6 {[%clk 0:03:00.9]} 6... bxc6
{[%clk 0:02:58.4]} 7. Bd3 {[%clk 0:03:01.5]} 7... d5 {[%clk 0:02:56]} 8. Bd2
{[%clk 0:03:01.8]} 8... O-O {[%clk 0:02:45.7]} 9. O-O {[%clk 0:03:01]} 9... Bxc3
{[%clk 0:02:41.4]} 10. Bxc3 {[%clk 0:03:00.5]} 10... Nxe4 {[%clk 0:02:41.8]} 11.
Bxe4 {[%clk 0:03:00.3]} 11... dxe4 {[%clk 0:02:42.7]} 12. Qe2 {[%clk 0:03:00]}
12... Bf5 {[%clk 0:02:40.2]} 13. Qe3 {[%clk 0:02:58.2]} 13... Qe7 {[%clk
0:02:38.6]} 14. Qf4 {[%clk 0:02:56]} 14... Bg6 {[%clk 0:02:36.7]} 15. Rad1
{[%clk 0:02:55.7]} 15... Rad8 {[%clk 0:02:32.6]} 16. Qe3 {[%clk 0:02:54.3]}
16... f5 {[%clk 0:02:30.2]} 17. Qxa7 {[%clk 0:02:54]} 17... Ra8 {[%clk
0:02:13.2]} 18. Qd4 {[%clk 0:02:37.4]} 18... Rxa2 {[%clk 0:02:02.7]} 19. Qc4+
{[%clk 0:02:37.1]} 19... Bf7 {[%clk 0:02:01.8]} 20. Qxc6 {[%clk 0:02:37.4]}
20... e3 {[%clk 0:01:58.8]} 21. fxe3 {[%clk 0:02:29.8]} 21... Qxe3+ {[%clk
0:01:52.5]} 22. Kh1 {[%clk 0:02:30.4]} 22... f4 {[%clk 0:01:51]} 23. Qxc7 {[%clk
0:02:24.3]} 23... h6 {[%clk 0:01:43.2]} 24. Qxf4 {[%clk 0:02:22.1]} 24... Qxf4
{[%clk 0:01:21.3]} 25. Rxf4 {[%clk 0:02:23]} 25... Bg6 {[%clk 0:01:20.7]} 26.
Rg4 {[%clk 0:01:58.3]} 26... Kh7 {[%clk 0:01:17.2]} 27. h3 {[%clk 0:01:56.5]}
27... Ra6 {[%clk 0:01:03.4]} 28. Rd7 {[%clk 0:01:54.8]} 28... Rg8 {[%clk
0:00:59.2]} 29. Rc4 {[%clk 0:01:47.2]} 29... Bxc2 {[%clk 0:00:49.2]} 30. Rcc7
{[%clk 0:01:21.1]} 30... Rg6 {[%clk 0:00:41]} 31. Bxg7 {[%clk 0:00:58.4]} 31...
R8xg7 {[%clk 0:00:27.5]} 32. Rxg7+ {[%clk 0:00:58]} 32... Rxg7 {[%clk
0:00:28.4]} 33. Rxc2 {[%clk 0:00:58.3]} 33... Rb7 {[%clk 0:00:26.9]} 34. Kg1
{[%clk 0:00:54.9]} 34... Kg6 {[%clk 0:00:23.6]} 35. Kf1 {[%clk 0:00:55.4]} 35...
Rf7+ {[%clk 0:00:16.4]} 36. Ke1 {[%clk 0:00:55.3]} 36... Re7+ {[%clk 0:00:12.7]}
37. Kd1 {[%clk 0:00:55.4]} 37... Rd7+ {[%clk 0:00:12.9]} 38. Kc1 {[%clk
0:00:55.6]} 38... Re7 {[%clk 0:00:13.1]} 39. b4 {[%clk 0:00:55.6]} 39... Kg5
{[%clk 0:00:13.2]} 40. b5 {[%clk 0:00:55.2]} 40... Kh4 {[%clk 0:00:13.3]} 41. b6
{[%clk 0:00:54.3]} 41... Rb7 {[%clk 0:00:13.6]} 42. Rb2 {[%clk 0:00:54.9]} 42...
Kg3 {[%clk 0:00:14.2]} 43. Kb1 {[%clk 0:00:52.5]} 43... h5 {[%clk 0:00:14.4]}
44. Ka2 {[%clk 0:00:50.2]} 44... h4 {[%clk 0:00:15]} 45. Ka3 {[%clk 0:00:50.7]}
45... Rb8 {[%clk 0:00:12.5]} 46. b7 {[%clk 0:00:51]} 46... Kf4 {[%clk
0:00:10.8]} 47. Ka4 {[%clk 0:00:50.1]} 47... Kg3 {[%clk 0:00:11.7]} 48. Ka5
{[%clk 0:00:50.5]} 48... Kf4 {[%clk 0:00:12.1]} 49. Ka6 {[%clk 0:00:51]} 1-0